{"text_format":"1","workbook":"xlsx","n_sheets":4,"sheets":["Macro1","Sheet1","Sheet2","Sheet3"],"not_rendered":{"charts":0,"images":1,"macros":1,"external_links":0,"defined_names":0,"comments":0,"pivot_tables":0},"unopened":[],"bounds":{"document_bytes":16777216,"sheet_cells":100000,"rows_first":2000,"rows_last":500,"rows_between":2000,"halvings":0,"cell_chars":16384,"cell_head_chars":4096},"cells_cut":0,"cells_raw":0,"read":"whole","date_system":"1900"}

{"sheet":"Macro1","index":0,"n_rows":0,"n_cols":0,"rows_kept":0,"cut":false,"hidden":false,"merged":[]}

{"sheet":"Sheet1","index":1,"n_rows":140,"n_cols":3,"rows_kept":140,"cut":false,"hidden":false,"merged":[]}
[]
[]
[]
[]
[]
[]
[null,null,2]
[null,null,{"$f":"C7+2","v":4}]
[null,null,{"$f":"C8+2","v":6}]
[null,null,8]
[null,null,10]
[null,null,12]
[null,null,14]
[null,null,16]
[null,null,18]
[null,null,20]
[]
[]
[]
[]
[]
[]
[]
[]
[]
[]
[]
[]
[]
[]
[]
[]
[]
[]
[]
[]
[]
[]
[]
[]
[]
[]
[]
[]
[]
[]
[null,null,{"$f":"C16+2","v":22}]
[null,null,24]
[null,null,26]
[null,null,28]
[null,null,30]
[null,null,32]
[null,null,34]
[null,null,36]
[null,null,38]
[null,null,40]
[null,null,42]
[null,null,44]
[null,null,46]
[null,null,48]
[null,null,50]
[null,null,52]
[null,null,54]
[null,null,56]
[null,null,58]
[null,null,60]
[null,null,62]
[null,null,64]
[null,null,66]
[null,null,68]
[null,null,70]
[null,null,72]
[null,null,74]
[null,null,76]
[null,null,78]
[null,null,80]
[null,null,82]
[null,null,84]
[null,null,86]
[null,null,88]
[null,null,90]
[null,null,92]
[null,null,94]
[null,null,96]
[null,null,98]
[null,null,100]
[null,null,102]
[null,null,104]
[null,null,106]
[null,null,108]
[null,null,110]
[null,null,112]
[null,null,114]
[null,null,116]
[null,null,118]
[null,null,120]
[null,null,122]
[null,null,124]
[null,null,126]
[null,null,128]
[null,null,130]
[null,null,132]
[null,null,{"$f":"C102+2","v":134}]
[null,null,136]
[null,null,138]
[null,null,140]
[null,null,142]
[null,null,144]
[null,null,146]
[null,null,148]
[null,null,150]
[null,null,152]
[null,null,154]
[null,null,156]
[null,null,158]
[null,null,160]
[null,null,162]
[null,null,164]
[null,null,166]
[null,null,168]
[null,null,170]
[null,null,172]
[null,null,174]
[null,null,176]
[null,null,178]
[null,null,180]
[null,null,182]
[null,null,184]
[null,null,186]
[null,null,188]
[null,null,190]
[null,null,192]
[null,null,194]
[null,null,196]
[null,null,198]
[null,null,200]
[null,null,202]
[null,null,204]
[null,null,206]
[null,null,208]

{"sheet":"Sheet2","index":2,"n_rows":0,"n_cols":0,"rows_kept":0,"cut":false,"hidden":false,"merged":[]}

{"sheet":"Sheet3","index":3,"n_rows":0,"n_cols":0,"rows_kept":0,"cut":false,"hidden":false,"merged":[]}